bitfinex-derivatives/quotes_SOLF0:USTF0_20250311
["timestamp","ask_amount","ask_price","bid_price","bid_amount"]
[1741724662547,0.05526914,126.97,126.95,44.01596929]
[1741724662742,19.45246929,127.0,126.96,19.45406929]
[1741724662944,11.57596929,127.01,126.96,11.57596929]
[1741724663348,192.0,127.03,126.95,51.89486929]
[1741724663349,7.8773,126.99,126.95,51.89486929]
[1741724663645,19.45326929,126.99,126.95,44.01596929]
[1741724664041,0.0552724,126.98,126.96,0.05253145]
[1741724664441,0.0552724,126.98,126.96,7.93113145]
[1741724665345,0.0552724,126.98,126.96,0.05253145]
[1741724665947,0.0552724,126.98,126.96,7.93113145]
[1741724666248,0.0552724,126.98,126.96,0.05253145]
[1741724666643,18.09084912,126.97,126.96,0.05253145]
[1741724666848,7.8799,126.94,126.93,32.44]
[1741724667245,7.8802,126.94,126.92,34.7082]
[1741724668150,0.05749298,126.94,126.92,34.76497563]
[1741724668752,7.93749298,126.94,126.92,34.76497563]
[1741724669647,7.8805,126.93,126.92,34.76497563]
[1741724669850,0.05749298,126.94,126.92,34.76497563]
[1741724670356,18.09084912,126.93,126.92,0.05677563]
[1741724670649,18.09084912,126.93,126.88,32.44]
[1741724671457,18.09084912,126.91,126.88,32.44]
[1741724671647,18.09084912,126.93,126.88,32.44]
[1741724671844,0.05659007,126.91,126.89,7.883]
[1741724672052,0.05659007,126.91,126.88,32.49284476]
[1741724672442,7.8827,126.9,126.88,32.49284476]
[1741724672854,7.93869007,126.91,126.88,32.49284476]
[1741724673153,0.05659007,126.91,126.88,32.49284476]
[1741724674549,18.09084912,126.97,126.88,50.58369388]
[1741724674750,7.8796,126.95,126.88,50.53084912]
[1741724675351,7.879,126.96,126.9,18.09084912]
[1741724675653,192.0,126.98,126.91,34.6038]
[1741724675855,0.05722529,126.94,126.92,7.93037162]
[1741724676056,0.05722529,126.94,126.92,0.04967162]
[1741724676255,0.05722529,126.94,126.92,7.93057162]
[1741724678353,0.05722529,126.94,126.93,7.8805]
[1741724678553,0.05722529,126.94,126.92,0.04967162]
[1741724679051,0.05722529,126.94,126.92,2.32997162]
[1741724679558,7.93752529,126.94,126.92,2.32997162]
[1741724679759,0.05722529,126.94,126.92,2.32997162]
[1741724679961,0.05722529,126.94,126.92,0.04967162]
[1741724680157,7.93742529,126.94,126.92,0.04967162]
[1741724680657,0.05722529,126.94,126.92,0.04967162]
[1741724680858,7.93742529,126.94,126.92,0.04967162]
[1741724681063,0.05722529,126.94,126.92,0.04967162]
[1741724681461,7.93742529,126.94,126.92,0.04967162]
[1741724685963,7.93742529,126.94,126.92,2.25457162]
[1741724686664,0.05722529,126.94,126.93,11.58545643]
[1741724687764,0.05722529,126.94,126.92,2.25457162]
[1741724687961,7.8805,126.93,126.92,0.04967162]
[1741724688870,7.93742529,126.94,126.92,0.04967162]
[1741724690872,0.05722529,126.94,126.92,0.04967162]
[1741724691067,0.05722529,126.94,126.92,7.93037162]
[1741724692672,0.05722529,126.94,126.92,0.04967162]
[1741724692871,0.05722529,126.94,126.93,19.46595643]
[1741724693170,0.05722529,126.94,126.93,7.8805]
[1741724694067,0.05722529,126.94,126.92,11.63512805]
[1741724694270,0.05722529,126.94,126.92,0.04967162]
[1741724694969,0.05722529,126.94,126.92,19.51622805]
[1741724695166,0.05722529,126.94,126.92,11.63512805]
[1741724695563,0.05722529,126.94,126.92,15.99112805]
[1741724695766,0.05722529,126.94,126.93,7.8805]
[1741724695963,192.0,127.02,126.92,20.44662805]
[1741724696160,271.50545643,127.03,126.97,11.58545643]
[1741724696469,7.8758,127.01,126.98,40.2974]
[1741724696670,7.8758,127.01,126.98,32.42]
[1741724697068,7.92656412,127.01,126.98,32.48016689]
[1741724697372,7.92656412,127.01,126.98,40.35746689]
[1741724698169,7.92656412,127.01,126.98,32.48016689]
[1741724700574,7.8762,127.0,126.98,32.48016689]
[1741724703573,0.05076412,127.01,126.98,32.48016689]
[1741724703777,0.05076412,127.01,126.98,40.35716689]
[1741724704380,0.05076412,127.01,126.98,32.48016689]
[1741724705080,7.8768,126.99,126.98,32.48016689]
[1741724706479,7.8768,126.99,126.98,0.06016689]
[1741724709377,7.8799,126.94,126.92,4.356]
[1741724709584,7.8799,126.94,126.92,36.756]
[1741724709780,18.08483451,126.98,126.92,36.756]
[1741724710088,7.8794,126.95,126.92,36.756]
[1741724710282,20.28103451,127.0,126.92,36.756]
[1741724710473,0.05500341,126.97,126.95,0.06047752]
[1741724710679,7.879,126.96,126.95,0.06047752]
[1741724713884,0.05500341,126.97,126.95,0.06047752]
[1741724714589,7.93330341,126.97,126.95,0.06047752]
[1741724714981,0.05500341,126.97,126.95,0.06047752]
[1741724715189,0.05500341,126.97,126.96,40.2787]
[1741724715788,7.8765,127.0,126.97,7.8778]
[1741724716094,18.08483451,127.02,126.96,32.4]
[1741724716291,18.08483451,127.02,126.96,40.2784]
[1741724716490,488.7059,127.03,126.96,32.4]
[1741724716688,484.34,127.03,126.96,32.4]
[1741724716890,0.05250296,127.01,126.98,7.9376396]
[1741724717287,2.1918,127.04,126.99,32.4]
[1741724717495,131.62873953,127.06,127.03,18.08483451]
[1741724717496,71.1054182,127.06,127.03,18.08483451]
[1741724717792,67.6611182,127.06,127.05,18.08483451]
[1741724717994,43.58181066,127.06,127.05,50.48483451]
[1741724718184,43.58181066,127.06,127.05,58.35793451]
[1741724718584,43.58181066,127.06,127.05,32.4]
[1741724718792,10.77517618,127.08,127.05,32.4]
[1741724721094,10.77517618,127.08,127.05,40.2729]
[1741724722999,2.1804,127.09,127.06,7.8724]
[1741724723697,2.1804,127.09,127.05,40.2729]
[1741724725286,2.1804,127.09,127.05,32.4]
[1741724725986,18.08483451,127.07,127.04,0.0520738]
[1741724726286,18.08483451,127.05,127.04,0.0520738]
[1741724726496,18.08483451,127.05,127.0,32.36]
[1741724726497,7.874,127.04,127.0,32.36]
[1741724726789,18.08483451,127.03,127.0,32.36]
[1741724726989,18.08483451,127.03,127.0,40.2362]
[1741724727595,18.14033295,127.03,127.0,40.29082698]
[1741724727799,0.05549844,127.03,127.0,32.41462698]
[1741724729402,0.05549844,127.03,127.0,40.29052698]
[1741724729796,0.05549844,127.03,127.0,32.41462698]
[1741724730098,18.14033295,127.03,127.0,32.41462698]
[1741724730293,0.05549844,127.03,127.0,32.41462698]
[1741724730887,0.05549844,127.03,127.0,0.05462698]
[1741724731099,18.14033295,127.03,127.0,0.05462698]
[1741724731692,26.01513295,127.03,127.0,0.05462698]
[1741724731897,0.05549844,127.03,127.0,0.05462698]
[1741724732091,7.92989844,127.03,127.0,0.05462698]
[1741724732893,7.8751,127.02,127.0,0.05462698]
[1741724733501,7.8756,127.01,127.0,0.05462698]
[1741724734093,7.8756,127.01,126.94,32.36]
[1741724734094,7.8781,126.97,126.94,32.36]
[1741724734308,18.08483451,126.98,126.93,32.36]
[1741724734494,18.08483451,126.98,126.92,32.36]
[1741724734893,18.08483451,126.98,126.93,7.88]
[1741724735090,0.04986941,126.96,126.93,7.88]
[1741724735289,0.04986941,126.96,126.92,32.36]
[1741724735801,0.04986941,126.96,126.93,7.8801]
[1741724736301,0.04986941,126.96,126.94,0.05395592]
[1741724736602,0.04986941,126.96,126.95,40.2393]
[1741724737100,52.68213451,127.04,126.95,34.6342]
[1741724737300,52.68213451,127.04,126.95,36.9007]
[1741724737506,7.8759,127.01,126.97,7.8777]
[1741724737692,52.68213451,127.04,126.95,36.9007]
[1741724738093,0.05770927,127.01,126.98,7.93007382]
[1741724738297,0.05770927,127.01,126.98,32.41287382]
[1741724738690,7.93360927,127.01,126.98,32.41287382]
[1741724739091,0.05770927,127.01,126.98,32.41287382]
[1741724739700,7.8765,127.0,126.98,32.41287382]
[1741724741293,0.05770927,127.01,126.98,32.41287382]
[1741724741901,0.05770927,127.01,126.99,7.8768]
[1741724742297,0.05770927,127.01,126.98,32.41287382]
[1741724743403,0.05770927,127.01,126.98,40.29007382]
[1741724744304,0.05770927,127.01,126.98,32.41287382]
[1741724744506,18.08483451,127.0,126.98,32.41287382]
[1741724744805,7.8768,126.99,126.98,0.05287382]
[1741724745404,7.8768,126.99,126.98,7.382e-05]
[1741724746604,10.1371,126.99,126.98,7.382e-05]
[1741724748406,7.8799,126.94,126.93,32.36]
[1741724748604,18.08483451,126.97,126.93,32.36]
[1741724748806,20.34513451,126.99,126.93,32.36]
[1741724749606,0.05424606,126.97,126.95,0.05765001]
[1741724750109,7.93254606,126.97,126.95,0.05765001]
[1741724750516,0.05424606,126.97,126.95,0.05765001]
[1741724751312,7.8787,126.96,126.95,0.05765001]
[1741724752711,0.05424606,126.97,126.95,0.05765001]
[1741724753412,7.8787,126.96,126.95,0.05765001]
[1741724753613,0.05424606,126.97,126.95,0.05765001]
[1741724754111,7.93284606,126.97,126.95,0.05765001]
[1741724754304,0.05424606,126.97,126.95,0.05765001]
[1741724755421,7.8787,126.96,126.95,0.05765001]
[1741724757017,7.882,126.91,126.87,7.884]
[1741724757212,18.08483451,126.93,126.88,32.36]
[1741724757717,7.8816,126.92,126.89,32.34]
[1741724758111,7.93542614,126.92,126.89,32.39415371]
[1741724758912,7.8821,126.91,126.89,32.39415371]
[1741724759417,0.05382614,126.92,126.89,32.39415371]
[1741724760113,0.05382614,126.92,126.9,7.8824]
[1741724760321,0.05382614,126.92,126.89,32.39415371]
[1741724761220,7.8789,126.96,126.89,32.39415371]
[1741724761419,18.08483451,126.99,126.9,18.08483451]
[1741724761621,7.8789,126.96,126.91,4.26]
[1741724761920,7.8789,126.96,126.92,32.34]
[1741724762415,0.05420897,126.95,126.93,0.05793239]
[1741724762619,0.05420897,126.95,126.93,7.93813239]
[1741724763021,0.05420897,126.95,126.94,7.8799]
[1741724763323,194.118,127.0,126.94,7.8799]
[1741724763622,7.8778,126.98,126.95,32.34]
[1741724763917,18.08483451,127.01,126.95,40.2189]
[1741724764119,7.8765,127.0,126.95,32.34]
[1741724764315,0.05174277,126.99,126.97,0.05783935]
[1741724764516,0.05174277,126.99,126.98,32.34]
[1741724766820,7.92854277,126.99,126.98,32.34]
[1741724771729,0.05174277,126.99,126.98,32.34]
[1741724773120,7.92854277,126.99,126.98,32.34]
[1741724773329,0.05174277,126.99,126.98,32.34]
[1741724775730,18.13657728,126.99,126.97,0.05783935]
[1741724776229,7.8774,126.98,126.97,0.05783935]
[1741724780040,7.92874277,126.99,126.97,0.05783935]
[1741724780744,7.8774,126.98,126.97,0.05783935]
[1741724781341,0.05174277,126.99,126.97,0.05783935]
[1741724783544,7.92864277,126.99,126.97,0.05783935]
[1741724783751,0.05174277,126.99,126.97,0.05783935]
[1741724787249,18.13657728,126.99,126.97,0.05783935]
[1741724788740,7.8774,126.98,126.97,0.05783935]
[1741724790448,0.05174277,126.99,126.97,0.05783935]
[1741724791049,7.8774,126.98,126.97,0.05783935]
[1741724793056,7.92864277,126.99,126.97,0.05783935]
[1741724794260,0.05174277,126.99,126.97,0.05783935]
[1741724795461,7.92864277,126.99,126.97,0.05783935]
[1741724795652,0.05174277,126.99,126.97,0.05783935]
[1741724796563,7.92874277,126.99,126.97,0.05783935]
[1741724798764,0.05174277,126.99,126.97,0.05783935]
[1741724799166,7.92854277,126.99,126.97,0.05783935]
[1741724799368,0.05174277,126.99,126.97,0.05783935]
[1741724799567,0.05174277,126.99,126.97,7.93583935]
[1741724800067,0.05174277,126.99,126.97,0.05783935]
[1741724800462,7.8774,126.98,126.97,0.05783935]
[1741724801066,7.92864277,126.99,126.97,0.05783935]
[1741724801265,0.05174277,126.99,126.97,0.05783935]
[1741724801869,7.8774,126.98,126.97,0.05783935]
[1741724802063,7.8774,126.98,126.97,32.35783935]
[1741724803073,0.05174277,126.99,126.97,32.35783935]
[1741724803763,17.19426353,127.05,126.98,18.08483451]
[1741724803969,17.19426353,127.04,126.98,22.25233451]
[1741724804165,17.19426353,127.04,127.0,7.8759]
[1741724804370,17.19426353,127.04,127.01,32.3]
[1741724804566,342.86707992,127.07,127.01,32.3]
[1741724804769,7.8728,127.06,127.01,40.1752]
[1741724804968,7.8728,127.06,127.03,0.05779653]
[1741724805673,7.8726,127.06,127.03,0.05779653]
[1741724805870,82.90707992,127.07,127.03,0.05779653]
[1741724806874,7.8737,127.04,127.03,0.05779653]
[1741724807270,18.08483451,127.05,127.01,32.3]
[1741724807975,7.8744,127.03,127.01,32.3]
[1741724808472,0.05262387,127.03,127.01,32.35825753]
[1741724809074,6.1644,127.08,127.01,32.35825753]
[1741724809475,7.8728,127.06,127.01,32.35825753]
[1741724810075,6.1644,127.08,127.01,32.35825753]
[1741724810779,7.8729,127.06,127.01,40.23335753]
[1741724810975,6.1644,127.08,127.01,40.23335753]
[1741724811377,6.1644,127.08,127.02,7.8744]
[1741724811679,6.1644,127.08,127.01,32.3]
[1741724811876,6.1644,127.08,127.04,0.05098444]
[1741724812077,6.1644,127.08,127.04,32.33098444]
[1741724812571,7.8722,127.07,127.04,32.33098444]
[1741724813575,4.0408,127.08,127.04,32.33098444]
[1741724813778,7.8731,127.05,127.04,32.33098444]
[1741724814582,7.8728,127.06,127.04,32.33098444]
[1741724814785,4.0408,127.08,127.04,32.33098444]
[1741724815183,7.873,127.06,127.04,32.33098444]
[1741724816684,4.0408,127.08,127.04,32.33098444]
[1741724817279,7.8729,127.06,127.04,32.33098444]
[1741724817888,7.8721,127.07,127.04,32.33098444]
[1741724818185,2.0577,127.08,127.04,32.33098444]
[1741724818385,18.08483451,127.09,127.04,32.33098444]
[1741724818586,7.8724,127.07,127.04,32.33098444]
[1741724819088,2.1144,127.11,127.04,32.33098444]
[1741724819284,4.1561,127.12,127.06,18.08483451]
[1741724819481,2.0839,127.12,127.07,32.28]
[1741724819789,259.92,127.13,127.08,0.05960523]
[1741724820193,7.8678,127.14,127.1,7.87]
[1741724820386,2.1252,127.15,127.11,32.28]
[1741724820587,2.1252,127.15,127.11,32.33314648]
[1741724820891,9.9924,127.15,127.11,32.33314648]
[1741724821091,1.9707,127.16,127.11,32.33314648]
[1741724821290,7.8673,127.15,127.11,32.33314648]
[1741724821487,10.82071082,127.17,127.11,32.33314648]
[1741724821890,10.82071082,127.17,127.11,40.20214648]
[1741724822187,10.82071082,127.17,127.12,4.1376]
[1741724822394,10.82071082,127.17,127.12,22.22243451]
[1741724822586,10.82071082,127.17,127.12,32.22593451]
[1741724822893,7.8654,127.18,127.12,32.22593451]
[1741724823281,7.8654,127.18,127.14,0.05470466]
[1741724823483,18.08483451,127.2,127.15,32.28]
[1741724823687,3.9889,127.21,127.15,32.28]
[1741724823891,7.8659,127.17,127.15,32.28]
[1741724824398,7.8652,127.18,127.15,32.33044637]
[1741724825195,3.9889,127.21,127.15,32.33044637]
[1741724825394,7.8658,127.17,127.15,32.33044637]
[1741724825695,3.9889,127.21,127.15,32.33044637]
[1741724825995,7.865,127.18,127.15,32.33044637]
[1741724826193,3.9889,127.21,127.15,32.33044637]
[1741724826895,7.8648,127.19,127.15,32.33044637]
[1741724827398,7.8657,127.17,127.15,32.33044637]
[1741724827598,18.08483451,127.2,127.15,32.33044637]
[1741724828097,7.8647,127.19,127.15,32.33044637]
[1741724828292,20.16293451,127.22,127.15,32.33044637]
[1741724829199,20.16293451,127.22,127.16,7.866]
[1741724829200,7.8635,127.21,127.16,7.866]
[1741724829402,20.16293451,127.22,127.15,32.33044637]
[1741724829697,7.8641,127.2,127.17,0.05795105]
[1741724829900,7.8641,127.2,127.18,32.24]
[1741724830291,20.16293451,127.22,127.18,32.24]
[1741724830892,7.8641,127.2,127.18,32.24]
[1741724831092,18.08483451,127.22,127.18,32.24]
[1741724832095,7.8641,127.2,127.18,32.24]
[1741724833199,7.8643,127.2,127.18,32.24]
[1741724834500,7.8635,127.21,127.18,32.24]
[1741724835998,18.08483451,127.22,127.18,32.24]
[1741724835999,7.8639,127.2,127.18,32.24]
[1741724836601,7.8635,127.21,127.18,32.24]
[1741724837104,7.8635,127.21,127.18,32.29345684]
[1741724838607,20.09993451,127.24,127.18,32.29345684]
[1741724839403,7.8635,127.21,127.18,32.29345684]
[1741724839604,20.09993451,127.24,127.18,32.29345684]
[1741724839795,2.0151,127.24,127.18,32.29345684]
[1741724840097,7.8629,127.22,127.18,32.29345684]
[1741724840403,7.8629,127.22,127.18,40.15825684]
[1741724841099,7.8629,127.22,127.18,32.29345684]
[1741724841300,7.8629,127.22,127.18,40.15815684]
[1741724841504,7.8629,127.22,127.18,32.29345684]
[1741724841697,7.8622,127.23,127.19,7.8639]
[1741724841897,1.9724,127.25,127.19,7.8639]
[1741724842200,1.9724,127.25,127.2,0.05831768]
[1741724842397,1.9724,127.25,127.21,32.22]
[1741724842599,280.06503451,127.26,127.21,32.22]
[1741724842600,20.22503451,127.26,127.21,32.22]
[1741724844100,7.8626,127.22,127.21,32.22]
[1741724844793,7.8622,127.23,127.21,32.22]
[1741724845200,7.8626,127.22,127.21,32.22]
[1741724847003,7.8626,127.22,127.2,0.05831768]
[1741724847004,7.8632,127.21,127.2,0.05831768]
[1741724847505,18.08483451,127.23,127.2,0.05831768]
[1741724847698,18.08483451,127.21,127.2,0.05831768]
[1741724848206,19.40470977,127.21,127.2,0.05831768]
[1741724850402,7.8632,127.21,127.2,0.05831768]
[1741724860512,22.43574669,127.21,127.08,130.17793917]
[1741724860706,18.03114669,127.15,127.11,32.2]
[1741724860907,7.8687,127.12,127.11,32.2]
[1741724861505,0.05833799,127.13,127.11,32.2]
[1741724864414,0.05833799,127.13,127.11,40.0692]
[1741724865308,0.05833799,127.13,127.12,7.8687]
[1741724865705,0.05833799,127.13,127.11,32.2]
[1741724868622,7.92693799,127.13,127.11,32.2]
[1741724868822,0.05833799,127.13,127.11,32.2]
[1741724869013,50.28948468,127.13,127.02,86.70256958]
[1741724869215,7.8722,127.07,127.03,97.39485404]
[1741724869516,18.03114669,127.07,127.03,97.39485404]
[1741724869716,7.8737,127.04,127.03,97.39485404]
[1741724870018,7.8737,127.04,127.03,65.19485404]
[1741724870213,19.44543753,127.04,127.03,65.19485404]
[1741724870416,0.0502631,127.05,127.03,65.19485404]
[1741724870819,0.0502631,127.05,127.04,32.2]
[1741724871321,0.0502631,127.05,127.04,43.77173753]
[1741724872318,0.0502631,127.05,127.04,32.2]
[1741724873220,18.06643602,127.1,127.04,40.0737]
[1741724873821,25.93673602,127.1,127.04,40.0737]
[1741724874321,0.05988542,127.08,127.06,0.05751838]
[1741724875723,7.93138542,127.08,127.06,0.05751838]
[1741724876718,0.05988542,127.08,127.07,32.2]
[1741724877225,0.05988542,127.08,127.07,40.0718]
[1741724877821,0.05988542,127.08,127.07,32.2]
[1741724878224,7.93108542,127.08,127.07,32.2]
[1741724880532,0.05988542,127.08,127.07,32.2]
[1741724882623,0.05988542,127.08,127.07,40.0718]
[1741724883729,7.8691,127.12,127.08,7.8711]
[1741724884436,7.8694,127.11,127.07,40.0715]
[1741724884625,18.06643602,127.12,127.07,32.2]
[1741724884825,0.02432814,127.1,127.08,0.05258127]
[1741724885023,7.8709,127.09,127.08,0.05258127]
[1741724885630,18.06643602,127.09,127.02,32.18]
[1741724885823,7.8728,127.06,127.02,32.18]
[1741724886325,18.06643602,127.09,127.02,32.18]
[1741724886829,7.8728,127.06,127.04,0.05544735]
[1741724887430,0.05921689,127.07,127.04,0.05544735]
[1741724888632,7.8731,127.05,127.04,0.05544735]
[1741724889945,7.8756,127.01,127.0,32.18]
[1741724890241,7.8756,127.01,126.96,24.30433602]
[1741724890444,18.06643602,127.05,126.96,24.30433602]
[1741724890638,18.06643602,127.03,126.96,6.2379]
[1741724890839,18.06643602,127.01,126.98,0.05604853]
[1741724891041,18.12256271,127.01,126.97,32.18]
[1741724891339,18.06643602,127.01,126.98,0.05236756]
[1741724891539,0.05100482,127.0,126.96,50.24643602]
[1741724891845,0.05100482,127.0,126.98,0.05574945]
[1741724893244,0.05100482,127.0,126.98,7.93284945]
[1741724893947,0.05100482,127.0,126.98,0.05574945]
[1741724894745,0.05100482,127.0,126.99,32.2]
[1741724894946,0.05100482,127.0,126.99,40.0768]
[1741724895745,7.8733,127.05,127.01,7.875]
[1741724896047,18.06643602,127.09,127.02,32.2]
[1741724896245,18.06643602,127.09,127.0,18.06643602]
[1741724896246,20.07583602,127.09,127.03,32.2]
[1741724896746,18.06643602,127.07,127.03,32.2]
[1741724896941,18.12563778,127.07,127.05,0.05435323]
[1741724897244,7.8725,127.06,127.05,0.05435323]
[1741724897837,7.8742,127.04,127.0,32.2]
[1741724898543,7.8734,127.05,127.0,40.0759]
[1741724898741,18.06643602,127.07,127.0,32.2]
[1741724899139,7.93090299,127.05,127.02,0.052093]
[1741724899337,0.05750299,127.05,127.02,0.052093]
[1741724899841,18.12393901,127.05,127.02,0.052093]
[1741724900241,7.874,127.04,127.02,0.052093]
[1741724901144,7.8743,127.03,127.02,0.052093]
[1741724907048,7.8758,127.01,126.94,18.06643602]
[1741724907253,7.8758,127.01,126.97,7.8779]
[1741724907451,20.16283602,127.04,126.98,32.18]
[1741724907849,7.8759,127.01,126.98,32.18]
[1741724908247,7.92803148,127.01,126.98,32.2400009]
[1741724908443,0.05213148,127.01,126.98,40.1171009]
[1741724909554,0.05213148,127.01,126.98,32.2400009]
[1741724910152,0.05213148,127.01,126.99,7.8764]
[1741724910653,0.05213148,127.01,127.0,7.8762]
[1741724910853,0.05213148,127.01,126.98,32.2400009]
[1741724911849,7.8765,127.0,126.98,32.2400009]
[1741724912050,0.05213148,127.01,126.98,32.2400009]
[1741724913058,0.05213148,127.01,126.99,7.8767]
[1741724914459,0.05213148,127.01,126.98,40.1171009]
[1741724914758,0.05213148,127.01,126.98,32.2400009]
[1741724914953,7.8766,127.0,126.98,32.2400009]
[1741724915359,0.05213148,127.01,126.98,32.2400009]
[1741724915652,7.92813148,127.01,126.98,0.0600009]
[1741724915958,18.06643602,126.99,126.91,32.18]
[1741724916153,18.06643602,126.96,126.91,32.18]
[1741724916758,7.8808,126.93,126.91,32.18]
[1741724916957,0.05211978,126.95,126.92,0.05107294]
[1741724919762,0.05211978,126.95,126.92,7.93167294]
[1741724920163,0.05211978,126.95,126.94,7.8799]
[1741724920464,0.05211978,126.95,126.94,40.0599]
[1741724922861,2.0874,127.04,126.97,7.878]
[1741724922862,18.06643602,127.03,126.97,7.878]
[1741724923062,4.56293303,127.02,126.97,40.058]
[1741724923362,4.56293303,127.01,126.97,32.18]
[1741724923563,4.56293303,127.0,126.97,32.18]
[1741724923765,9.9616,127.04,126.97,32.18]
[1741724923953,4.56383164,127.03,127.0,7.8761]
[1741724924265,4.61657533,127.02,127.0,40.0561]
[1741724924465,4.56383164,127.01,127.0,40.11654095]
[1741724924864,0.05274369,127.02,127.0,32.24044095]
[1741724925067,0.05274369,127.02,127.01,7.8756]
[1741724926762,0.05274369,127.02,127.0,32.24044095]
[1741724927665,0.05274369,127.02,127.0,40.11624095]
[1741724927859,0.05274369,127.02,127.0,32.24044095]
[1741724928066,0.05274369,127.02,127.01,7.8756]
[1741724929272,4.62804129,127.02,127.01,7.8756]
[1741724930770,0.05274369,127.02,127.01,7.8756]
[1741724931164,0.05274369,127.02,127.0,32.24044095]
[1741724931670,0.05274369,127.02,127.01,7.8756]
[1741724932275,0.05274369,127.02,127.0,40.11624095]
[1741724933674,0.05274369,127.02,127.0,32.24044095]
[1741724934575,4.57889917,127.01,127.0,40.11654095]
[1741724934874,4.57889917,127.01,127.0,32.24044095]
[1741724937473,4.57889917,127.01,127.0,40.11664095]
[1741724937979,4.57906669,127.01,127.0,40.11664095]
[1741724938175,0.05274369,127.02,127.01,7.8756]
[1741724938379,4.63186617,127.02,127.01,7.8756]
[1741724938776,0.05274369,127.02,127.01,7.8756]
[1741724938971,4.63180243,127.02,127.01,7.8756]
[1741724939176,0.05274369,127.02,127.01,7.8756]
[1741724940975,4.63046117,127.02,127.0,32.24044095]
[1741724941176,0.05274369,127.02,127.0,32.24044095]
[1741724942681,7.92774369,127.02,127.0,32.24044095]
[1741724943483,4.57772397,127.01,127.0,32.24044095]
[1741724944178,4.57772397,127.01,127.0,0.06044095]
[1741724944579,12.45332397,127.01,127.0,0.06044095]
[1741724946176,30.51975999,127.01,127.0,0.06044095]
[1741724946380,22.64415999,127.01,126.94,4.0034]
[1741724946584,18.06643602,126.99,126.93,2.0362]
[1741724946881,18.06643602,126.99,126.95,32.14]
[1741724946882,4.57772397,126.98,126.95,32.14]
[1741724947088,4.57772397,126.97,126.95,32.14]
[1741724947385,4.57772397,126.96,126.95,32.19611273]
[1741724947783,0.05841715,126.97,126.95,32.19611273]
[1741724948185,7.8787,126.96,126.95,32.19611273]
[1741724948390,0.05841715,126.97,126.95,32.19611273]
[1741724948687,7.93671715,126.97,126.95,32.19611273]
[1741724949989,12.44713159,126.96,126.95,32.19611273]
[1741724951496,12.44484218,126.96,126.95,32.19611273]
[1741724951700,4.56614218,126.96,126.95,32.19611273]
[1741724952795,17.23735317,127.03,126.95,50.26254875]
[1741724952994,17.23735317,127.03,126.95,50.20643602]
[1741724953195,35.30378919,127.03,126.95,32.14]
[1741724953394,18.06643602,127.03,126.95,32.14]
[1741724954000,0.05410624,127.0,126.98,0.05980374]
[1741724954201,0.05410624,127.0,126.98,32.19980374]
[1741724954402,0.05410624,127.0,126.98,40.07690374]
[1741724955604,0.05410624,127.0,126.98,32.19980374]
[1741724955801,0.05410624,127.0,126.99,7.8768]
[1741724956003,0.05410624,127.0,126.98,32.19980374]
[1741724956997,0.05410624,127.0,126.98,40.07720374]
[1741724959404,7.93040624,127.0,126.98,32.19980374]
[1741724959802,0.05410624,127.0,126.98,32.19980374]
[1741724960902,0.05410624,127.0,126.98,40.07720374]
[1741724962508,0.05410624,127.0,126.98,0.05980374]
[1741724963803,7.8768,126.99,126.98,0.05980374]
[1741724969209,18.06643602,126.99,126.94,32.12]
[1741724969505,22.25263602,126.99,126.94,32.12]
[1741724969700,30.12983602,126.99,126.95,7.8792]
[1741724969895,12.0634,126.99,126.95,7.8792]
[1741724970297,7.8777,126.98,126.96,0.05342945]
[1741724970502,7.93756954,126.98,126.96,0.05342945]
[1741724971008,7.878,126.97,126.96,0.05342945]
[1741724974509,0.05986954,126.98,126.96,32.17342945]
[1741724975310,0.05986954,126.98,126.96,40.05162945]
[1741724976806,0.05986954,126.98,126.97,7.878]
[1741724979606,0.05986954,126.98,126.96,32.17342945]
[1741724979815,18.12630556,126.98,126.96,0.05342945]
[1741724980611,0.05986954,126.98,126.96,0.05342945]
[1741724982210,7.878,126.97,126.96,0.05342945]
[1741724982512,18.12630556,126.98,126.96,0.05342945]
[1741724982810,26.00400556,126.98,126.96,0.05342945]
[1741724984106,7.878,126.97,126.96,0.05342945]
[1741724991214,0.05986954,126.98,126.96,0.05342945]
[1741724991415,0.05986954,126.98,126.97,32.12]
[1741724997815,0.05986954,126.98,126.97,39.998]
[1741724999627,0.05986954,126.98,126.97,32.12]
[1741725000327,0.05986954,126.98,126.97,39.998]